fUSD/lending_fUSD_20240918
["ID","MTS","AMOUNT","RATE_DAILY","PERIOD"]
[338472107,1726680646953,-306.488912,0.00013325,2]
[338472108,1726680646963,-177.764151,0.00013325,2]
[338472109,1726680646972,-177.764151,0.00013325,2]
[338472110,1726680646982,-262.660878,0.00013325,2]
[338472111,1726680646994,-262.660878,0.00013325,2]
[338472112,1726680647003,-326.543484,0.00013325,2]
[338472113,1726680647012,-326.543484,0.00013325,2]
[338472114,1726680647021,-151.0,0.00013325,2]
[338472115,1726680647030,-233.140728,0.00013325,2]
[338472116,1726680647039,-160.46,0.00013328,2]
[338472117,1726680647048,-181.45,0.00013342,2]
[338472118,1726680647059,-533.38,0.000134,2]
[338472119,1726680647068,-533.38,0.000134,2]
[338472120,1726680647077,-533.38,0.000134,2]
[338472121,1726680647086,-533.38,0.000134,2]
[338472122,1726680647096,-533.38,0.000134,2]
[338472123,1726680647106,-533.38,0.000134,2]
[338472124,1726680647116,-533.38,0.000134,2]
[338472125,1726680647128,-151.0,0.000134,2]
[338472126,1726680647137,-151.0,0.000134,2]
[338472127,1726680647146,-533.38,0.000134,2]
[338472128,1726680647155,-151.0,0.000134,2]
[338472129,1726680647164,-533.38,0.000134,2]
[338472130,1726680647174,-151.0,0.000134,2]
[338472131,1726680647183,-533.38,0.000134,2]
[338472132,1726680647194,-151.0,0.000134,2]
[338472133,1726680647204,-533.38,0.000134,2]
[338472134,1726680647214,-152.21105,0.000134,2]
[338472135,1726680647225,-533.38,0.000134,2]
[338472136,1726680647234,-151.0,0.000134,2]
[338472137,1726680647243,-151.0,0.000134,2]
[338472138,1726680647252,-151.0,0.000134,2]
[338472139,1726680647262,-184.431937,0.000134,2]
[338472140,1726680647271,-205.660846,0.000134,2]
[338472141,1726680647280,-205.660846,0.000134,2]
[338472142,1726680647289,-533.38,0.000134,2]
[338472143,1726680647299,-533.38,0.000134,2]
[338472144,1726680647308,-533.38,0.000134,2]
[338472145,1726680647317,-1187.04,0.000134,2]
[338472146,1726680647326,-154.587468,0.000134,2]
[338472147,1726680647335,-533.38,0.000134,2]
[338472148,1726680647344,-533.38,0.000134,2]
[338472149,1726680647353,-151.0,0.000134,2]
[338472150,1726680647363,-151.0,0.000134,2]
[338472151,1726680647373,-151.0,0.000134,2]
[338472152,1726680647382,-533.38,0.000134,2]
[338472153,1726680647391,-212.292908,0.000134,2]
[338472154,1726680647400,-212.292908,0.000134,2]
[338472155,1726680647409,-533.38,0.000134,2]
[338472156,1726680647418,-151.0,0.000134,2]
[338472157,1726680647428,-151.0,0.000134,2]
[338472158,1726680647438,-211.196832,0.000134,2]
[338472159,1726680647447,-211.196832,0.000134,2]
[338472160,1726680647456,-480.88208112,0.000134,2]
[338472161,1726680647465,-218.835927,0.000134,2]
[338472162,1726680647475,-218.835927,0.000134,2]
[338472163,1726680647485,-151.0,0.000134,2]
[338472164,1726680647494,-151.0,0.000134,2]
[338472165,1726680647503,-327.194189,0.000134,2]
[338472166,1726680647513,-327.194189,0.000134,2]
[338472167,1726680647522,-152.746919,0.000134,2]
[338472168,1726680647531,-152.746919,0.000134,2]
[338472169,1726680647540,-151.0,0.000134,2]
[338472170,1726680647550,-186.215252,0.000134,2]
[338472171,1726680647559,-165.397714,0.000134,2]
[338472172,1726680647569,-186.215252,0.000134,2]
[338472173,1726680647578,-151.0,0.000134,2]
[338472174,1726680647587,-151.0,0.000134,2]
[338472175,1726680647596,-151.0,0.000134,2]
[338472176,1726680647606,-151.0,0.000134,2]
[338472177,1726680647615,-151.0,0.000134,2]
[338472178,1726680647626,-512.452786,0.000134,2]
[338472179,1726680647635,-512.452786,0.000134,2]
[338472180,1726680647645,-481.06546,0.000134,2]
[338472181,1726680647655,-151.0,0.000134,2]
[338472182,1726680647664,-151.0,0.000134,2]
[338472183,1726680647675,-151.0,0.000134,2]
[338472184,1726680647684,-481.06546,0.000134,2]
[338472185,1726680647695,-151.0,0.000134,2]
[338472186,1726680647704,-773.39436,0.000134,2]
[338472187,1726680647713,-773.39436,0.000134,2]
[338472188,1726680647722,-206.094846,0.000134,2]
[338472189,1726680647732,-206.094846,0.000134,2]
[338472190,1726680647741,-200.0,0.00013547,2]
[338472191,1726680647750,-151.0,0.00013567,2]
[338472192,1726680647759,-151.0,0.00013567,2]
[338472193,1726680647768,-533.38,0.000136,2]
[338472194,1726680647777,-533.38,0.000136,2]
[338472195,1726680647786,-533.38,0.000136,2]
[338472196,1726680647796,-533.38,0.000136,2]
[338472197,1726680647805,-151.0,0.000136,2]
[338472198,1726680647816,-151.0,0.000136,2]
[338472199,1726680647826,-151.0,0.000136,2]
[338472200,1726680647837,-151.0,0.000136,2]
[338472201,1726680647846,-151.0,0.000136,2]
[338472202,1726680647855,-151.0,0.000136,2]
[338472203,1726680647865,-156.358721,0.000136,2]
[338472204,1726680647876,-156.358721,0.000136,2]
[338472205,1726680647884,-209.050629,0.000136,2]
[338472206,1726680647893,-151.0,0.000136,2]
[338472207,1726680647903,-500.0,0.00013699,2]
[338472208,1726680647913,-2000.0,0.00013699,2]
[338472209,1726680647923,-2000.0,0.00013699,2]
[338472210,1726680647933,-2000.0,0.00013699,2]
[338472211,1726680647943,-2000.0,0.00013699,2]
[338472212,1726680647953,-2000.0,0.00013699,2]
[338472213,1726680647965,-500.0,0.00013699,2]
[338472214,1726680647974,-175.01,0.00013699,2]
[338472215,1726680647987,-200.0,0.00013699,2]
[338472216,1726680647996,-151.0,0.00013699,2]
[338472217,1726680648006,-151.0,0.00013699,2]
[338472218,1726680648015,-167.409803,0.00013699,2]
[338472219,1726680648024,-167.409803,0.00013699,2]
[338472220,1726680648034,-167.409803,0.00013699,2]
[338472221,1726680648043,-167.409803,0.00013699,2]
[338472222,1726680648052,-150.0,0.00013699,2]
[338472223,1726680648063,-151.0,0.00013699,2]
[338472224,1726680648072,-151.0,0.00013699,2]
[338472225,1726680648082,-639.265462,0.00013699,2]
[338472226,1726680648091,-639.265462,0.00013699,2]
[338472227,1726680648100,-151.0,0.00013699,2]
[338472228,1726680648109,-151.0,0.00013699,2]
[338472229,1726680648118,-151.0,0.00013699,2]
[338472230,1726680648129,-441.254152,0.00013699,2]
[338472231,1726680648138,-441.254152,0.00013699,2]
[338472232,1726680648148,-329.150492,0.00013699,2]
[338472233,1726680648158,-329.150492,0.00013699,2]
[338472234,1726680648167,-151.0,0.00013699,2]
[338472235,1726680648177,-151.0,0.00013699,2]
[338472236,1726680648186,-327.194189,0.00013699,2]
[338472237,1726680648196,-327.194189,0.00013699,2]
[338472238,1726680648206,-167.409803,0.00013699,2]
[338472239,1726680648215,-152.746919,0.00013699,2]
[338472240,1726680648224,-167.409803,0.00013699,2]
[338472241,1726680648233,-152.746919,0.00013699,2]
[338472242,1726680648242,-186.215252,0.00013699,2]
[338472243,1726680648252,-186.215252,0.00013699,2]
[338472244,1726680648261,-151.0,0.00013699,2]
[338472245,1726680648270,-151.0,0.00013699,2]
[338472246,1726680648280,-151.0,0.00013699,2]
[338472247,1726680648289,-151.0,0.00013699,2]
[338472248,1726680648299,-2054.36937644,0.00013699,2]
[338472249,1726680648308,-500.0,0.000137,2]
[338472250,1726680648317,-500.0,0.000137,2]
[338472251,1726680648326,-500.0,0.000137,2]
[338472252,1726680648336,-500.0,0.000137,2]
[338472253,1726680648347,-500.0,0.000137,2]
[338472254,1726680648356,-500.0,0.000137,2]
[338472255,1726680648366,-500.0,0.000137,2]
[338472256,1726680648376,-500.0,0.000137,2]
[338472257,1726680648385,-327.83,0.000137,2]
[338472258,1726680648395,-500.0,0.000137,2]
[338472259,1726680648404,-320.69,0.000137,2]
[338472260,1726680648414,-220.950938,0.000137,2]
[338472261,1726680648422,-529.132389,0.000137,2]
[338472262,1726680648431,-529.132389,0.000137,2]
[338472263,1726680648441,-151.0,0.000137,2]
[338472264,1726680648449,-151.0,0.000137,2]
[338472265,1726680648459,-151.0,0.000137,2]
[338472266,1726680648468,-151.0,0.000137,2]
[338472267,1726680648478,-192.064599,0.000137,2]
[338472268,1726680648487,-192.064599,0.000137,2]
[338472269,1726680648496,-151.0,0.000137,2]
[338472270,1726680648505,-151.0,0.000137,2]
[338472271,1726680648514,-211.196832,0.000137,2]
[338472272,1726680648522,-211.196832,0.000137,2]
[338472273,1726680648531,-218.835927,0.000137,2]
[338472274,1726680648539,-218.835927,0.000137,2]
[338472275,1726680648547,-151.0,0.000137,2]
[338472276,1726680648556,-151.0,0.000137,2]
[338472277,1726680648565,-151.0,0.000137,2]
[338472278,1726680648575,-151.0,0.000137,2]
[338472279,1726680648584,-151.0,0.000137,2]
[338472280,1726680648594,-159.705953,0.000137,2]
[338472281,1726680648603,-159.705953,0.000137,2]
[338472282,1726680648613,-904.475434,0.000137,2]
[338472283,1726680648624,-306.488912,0.000137,2]
[338472284,1726680648634,-306.488912,0.000137,2]
[338472285,1726680648644,-177.764151,0.000137,2]
[338472286,1726680648653,-177.764151,0.000137,2]
[338472287,1726680648663,-262.660878,0.000137,2]
[338472288,1726680648672,-262.660878,0.000137,2]
[338472289,1726680648682,-326.543484,0.000137,2]
[338472290,1726680648691,-326.543484,0.000137,2]
[338472291,1726680648701,-262.358615,0.000137,2]
[338472292,1726680648710,-151.0,0.000137,2]
[338472293,1726680648720,-151.0,0.000137,2]
[338472294,1726680648729,-151.0,0.000137,2]
[338472295,1726680648739,-512.452786,0.000137,2]
[338472296,1726680648747,-512.452786,0.000137,2]
[338472297,1726680648757,-481.06546,0.000137,2]
[338472298,1726680648767,-151.0,0.000137,2]
[338472299,1726680648776,-151.0,0.000137,2]
[338472300,1726680648786,-481.06546,0.000137,2]
[338472301,1726680648795,-773.39436,0.000137,2]
[338472302,1726680648805,-773.39436,0.000137,2]
[338472303,1726680648814,-206.094846,0.000137,2]
[338472304,1726680648823,-206.094846,0.000137,2]
[338472305,1726680648833,-1000.0,0.00013707,2]
[338472306,1726680648842,-302.08,0.000138,2]
[338472307,1726680648851,-5008.86203224,0.000138,2]
[338472308,1726680648861,-193.68772911,0.000138,2]
[338472309,1726680648870,-151.0,0.00013821,2]
[338472310,1726680648880,-212.292908,0.00013821,2]
[338472311,1726680648890,-212.292908,0.00013821,2]
[338472312,1726680648899,-167.49323263,0.0001385,2]
[338472313,1726680648908,-500.0,0.00013873,2]
[338472314,1726680648918,-500.0,0.00013873,2]
[338472315,1726680648927,-151.0,0.00013873,2]
[338472316,1726680648936,-151.0,0.00013889,2]
[338472317,1726680648945,-151.0,0.00013889,2]
[338472318,1726680648954,-220.950938,0.00013889,2]
[338472319,1726680648963,-151.0,0.00013889,2]
[338472320,1726680648972,-151.0,0.00013889,2]
[338472321,1726680648983,-151.0,0.00013889,2]
[338472322,1726680648994,-196.396014,0.00013889,2]
[338472323,1726680649003,-227.123712,0.00013889,2]
[338472324,1726680649012,-529.132389,0.00013889,2]
[338472325,1726680649023,-529.132389,0.00013889,2]
[338472326,1726680649035,-151.0,0.00013889,2]
[338472327,1726680649043,-151.0,0.00013889,2]
[338472328,1726680649052,-156.358721,0.00013889,2]
[338472329,1726680649063,-156.358721,0.00013889,2]
[338472330,1726680649072,-151.0,0.00013889,2]
[338472331,1726680649082,-202.05770887,0.00013889,2]
[338472332,1726680649092,-151.0,0.0001389,2]
[338472333,1726680649101,-212.292908,0.0001389,2]
[338472334,1726680649110,-212.292908,0.0001389,2]
[338472335,1726680649119,-220.950938,0.0001389,2]
[338472336,1726680649129,-151.0,0.0001389,2]
[338472337,1726680649145,-151.0,0.0001389,2]
[338472338,1726680649154,-151.0,0.0001389,2]
[338472339,1726680649163,-529.132389,0.0001389,2]
[338472340,1726680649172,-529.132389,0.0001389,2]
[338472341,1726680649181,-151.0,0.0001389,2]
[338472342,1726680649191,-151.0,0.0001389,2]
[338472343,1726680649201,-156.358721,0.0001389,2]
[338472344,1726680649210,-156.358721,0.0001389,2]
[338472345,1726680649219,-151.0,0.0001389,2]
[338472346,1726680649228,-151.0,0.0001389,2]
[338472347,1726680649238,-151.0,0.0001389,2]
[338472348,1726680649248,-151.0,0.0001389,2]
[338472349,1726680649257,-151.0,0.0001389,2]
[338472350,1726680649266,-227.8848,0.0001389,2]
[338472351,1726680649276,-151.0,0.0001389,2]
[338472352,1726680649285,-151.0,0.0001389,2]
[338472353,1726680649294,-151.0,0.0001389,2]
[338472354,1726680649303,-151.0,0.0001389,2]
[338472355,1726680649313,-151.0,0.0001389,2]
[338472356,1726680649323,-151.0,0.0001389,2]
[338472357,1726680649332,-441.254152,0.0001389,2]
[338472358,1726680649341,-441.254152,0.0001389,2]
[338472359,1726680649351,-441.254152,0.0001389,2]
[338472360,1726680649360,-441.254152,0.0001389,2]
[338472361,1726680649369,-192.064599,0.0001389,2]
[338472362,1726680649384,-192.064599,0.0001389,2]
[338472363,1726680649393,-192.064599,0.0001389,2]
[338472364,1726680649403,-192.064599,0.0001389,2]
[338472365,1726680649412,-329.150492,0.0001389,2]
[338472366,1726680649422,-329.150492,0.0001389,2]
[338472367,1726680649431,-329.150492,0.0001389,2]
[338472368,1726680649441,-329.150492,0.0001389,2]
[338472369,1726680649450,-151.0,0.0001389,2]
[338472370,1726680649460,-151.0,0.0001389,2]
[338472371,1726680649469,-151.0,0.0001389,2]
[338472372,1726680649693,-151.0,0.0001389,2]
[338472373,1726680649730,-151.0,0.0001389,2]
[338472374,1726680649740,-151.0,0.0001389,2]
[338472375,1726680649749,-211.196832,0.0001389,2]
[338472376,1726680649759,-211.196832,0.0001389,2]
[338472377,1726680649769,-211.196832,0.0001389,2]
[338472378,1726680649778,-211.196832,0.0001389,2]
[338472379,1726680649787,-218.835927,0.0001389,2]
[338472380,1726680649797,-218.835927,0.0001389,2]
[338472381,1726680649807,-218.835927,0.0001389,2]
[338472382,1726680649816,-218.835927,0.0001389,2]
[338472383,1726680649826,-151.0,0.0001389,2]
[338472384,1726680649836,-151.0,0.0001389,2]
[338472385,1726680649846,-151.791377,0.0001389,2]
[338472386,1726680649856,-242.065443,0.0001389,2]
[338472387,1726680649866,-152.83831,0.0001389,2]
[338472388,1726680649881,-151.0,0.0001389,2]
[338472389,1726680649890,-151.0,0.0001389,2]
[338472390,1726680649900,-159.705953,0.0001389,2]
[338472391,1726680649909,-159.705953,0.0001389,2]
[338472392,1726680649919,-159.705953,0.0001389,2]
[338472393,1726680649928,-159.705953,0.0001389,2]
[338472394,1726680649938,-904.475434,0.0001389,2]
[338472395,1726680649948,-904.475434,0.0001389,2]
[338472396,1726680649957,-306.488912,0.0001389,2]
[338472397,1726680649967,-306.488912,0.0001389,2]
[338472398,1726680649977,-306.488912,0.0001389,2]
[338472399,1726680649990,-306.488912,0.0001389,2]
[338472400,1726680650000,-9011.6408535,0.0001389,2]
[338472401,1726680650009,-7505.5591667,0.0001389,2]
[338472402,1726680650019,-5999.4774799,0.0001389,2]
[338472403,1726680650029,-4493.395793,0.0001389,2]
[338472404,1726680650039,-177.764151,0.0001389,2]
[338472405,1726680650049,-177.764151,0.0001389,2]
[338472406,1726680650060,-177.764151,0.0001389,2]
[338472407,1726680650070,-177.764151,0.0001389,2]
[338472408,1726680650079,-262.660878,0.0001389,2]
[338472409,1726680650089,-262.660878,0.0001389,2]
[338472410,1726680650099,-2713.7536903,0.0001389,2]
[338472411,1726680650109,-2260.2142292,0.0001389,2]
[338472412,1726680650118,-262.660878,0.0001389,2]
[338472413,1726680650131,-1806.6747682,0.0001389,2]
[338472414,1726680650140,-1353.1353072,0.0001389,2]
[338472415,1726680650151,-262.660878,0.0001389,2]
[338472416,1726680650161,-327.194189,0.0001389,2]
[338472417,1726680650171,-327.194189,0.0001389,2]
[338472418,1726680650180,-327.194189,0.0001389,2]
[338472419,1726680650190,-327.194189,0.0001389,2]
[338472420,1726680650200,-326.543484,0.0001389,2]
[338472421,1726680650209,-326.543484,0.0001389,2]
[338472422,1726680650219,-167.409803,0.0001389,2]
[338472423,1726680650228,-167.409803,0.0001389,2]
[338472424,1726680650238,-326.543484,0.0001389,2]
[338472425,1726680650247,-152.746919,0.0001389,2]
[338472426,1726680650257,-326.543484,0.0001389,2]
[338472427,1726680650266,-152.746919,0.0001389,2]
[338472428,1726680650276,-167.409803,0.0001389,2]
[338472429,1726680650286,-152.746919,0.0001389,2]
[338472430,1726680650295,-167.409803,0.0001389,2]
[338472431,1726680650305,-152.746919,0.0001389,2]
[338472432,1726680650315,-186.215252,0.0001389,2]
[338472433,1726680650325,-186.215252,0.0001389,2]
[338472434,1726680650334,-186.215252,0.0001389,2]
[338472435,1726680650344,-186.215252,0.0001389,2]
[338472436,1726680650355,-151.0,0.0001389,2]
[338472437,1726680650364,-151.0,0.0001389,2]
[338472438,1726680650374,-151.0,0.0001389,2]
[338472439,1726680650386,-151.0,0.0001389,2]
[338472440,1726680650396,-229.309266,0.0001389,2]
[338472441,1726680650405,-151.0,0.0001389,2]
[338472442,1726680650415,-151.0,0.0001389,2]
[338472443,1726680650425,-273.1680497,0.0001389,2]
[338472444,1726680650435,-329.1358591,0.0001389,2]
[338472445,1726680650445,-512.452786,0.0001389,2]
[338472446,1726680650455,-385.1036685,0.0001389,2]
[338472447,1726680650465,-441.0714779,0.0001389,2]
[338472448,1726680650475,-512.452786,0.0001389,2]
[338472449,1726680650485,-512.452786,0.0001389,2]
[338472450,1726680650494,-512.452786,0.0001389,2]
[338472451,1726680650504,-481.06546,0.0001389,2]
[338472452,1726680650514,-481.06546,0.0001389,2]
[338472453,1726680650523,-151.0,0.0001389,2]
[338472454,1726680650534,-151.0,0.0001389,2]
[338472455,1726680650543,-151.0,0.0001389,2]
[338472456,1726680650553,-151.0,0.0001389,2]
[338472457,1726680650563,-153.014112,0.0001389,2]
[338472458,1726680650573,-151.0,0.0001389,2]
[338472459,1726680650583,-151.0,0.0001389,2]
[338472460,1726680650592,-481.06546,0.0001389,2]
[338472461,1726680650603,-151.0,0.0001389,2]
[338472462,1726680650612,-481.06546,0.0001389,2]
[338472463,1726680650622,-1643.4828506,0.0001389,2]
[338472464,1726680650635,-1980.2064719,0.0001389,2]
[338472465,1726680650644,-2316.9300931,0.0001389,2]
[338472466,1726680650654,-2653.6537144,0.0001389,2]
[338472467,1726680650663,-645.1803465,0.0001389,2]
[338472468,1726680650673,-776.0474785,0.0001389,2]
[338472469,1726680650682,-906.9146106,0.0001389,2]
[338472470,1726680650692,-1037.7817426,0.0001389,2]
[338472471,1726680650701,-773.39436,0.0001389,2]
[338472472,1726680650711,-773.39436,0.0001389,2]
[338472473,1726680650720,-773.39436,0.0001389,2]
[338472474,1726680650730,-773.39436,0.0001389,2]
[338472475,1726680650739,-206.094846,0.0001389,2]
[338472476,1726680650749,-206.094846,0.0001389,2]
[338472477,1726680650759,-7784.8896058,0.0001389,2]
[338472478,1726680650769,-9363.9615375,0.0001389,2]
[338472479,1726680650778,-10943.0334693,0.0001389,2]
[338472480,1726680650787,-12522.105401,0.0001389,2]
[338472481,1726680650798,-206.094846,0.0001389,2]
[338472482,1726680650807,-206.094846,0.0001389,2]
[338472483,1726680650817,-151.0,0.00013899,2]
[338472484,1726680650826,-151.0,0.00013899,2]
[338472485,1726680650836,-151.0,0.00013899,2]
[338472486,1726680650846,-151.0,0.00013899,2]
[338472487,1726680650856,-151.0,0.00013899,2]
[338472488,1726680650865,-151.0,0.00013899,2]
[338472489,1726680650875,-151.0,0.00013899,2]
[338472490,1726680650886,-151.0,0.00013899,2]
[338472491,1726680650896,-205.660846,0.00013899,2]
[338472492,1726680650906,-205.660846,0.00013899,2]
[338472493,1726680650916,-151.0,0.00013899,2]
[338472494,1726680650925,-639.265462,0.00013899,2]
[338472495,1726680650935,-639.265462,0.00013899,2]
[338472496,1726680650945,-151.0,0.00013899,2]
[338472497,1726680650955,-220.950938,0.00013899,2]
[338472498,1726680650964,-151.0,0.00013899,2]
[338472499,1726680650974,-290.515364,0.00013899,2]
[338472500,1726680650985,-151.0,0.00013899,2]
[338472501,1726680650996,-529.132389,0.00013899,2]
[338472502,1726680651006,-529.132389,0.00013899,2]
[338472503,1726680651016,-151.0,0.00013899,2]
[338472504,1726680651027,-151.0,0.00013899,2]
[338472505,1726680651036,-156.358721,0.00013899,2]
[338472506,1726680651046,-156.358721,0.00013899,2]
[338472507,1726680651056,-151.0,0.00013899,2]
[338472508,1726680651067,-152.746919,0.00013899,2]
[338472509,1726680651077,-152.746919,0.00013899,2]
[338472510,1726680651087,-186.215252,0.00013899,2]
[338472511,1726680651097,-186.215252,0.00013899,2]
[338472512,1726680651106,-151.0,0.00013899,2]
[338472513,1726680651116,-151.0,0.00013899,2]
[338472514,1726680651126,-512.452786,0.00013899,2]
[338472515,1726680651138,-512.452786,0.00013899,2]
[338472516,1726680651150,-481.06546,0.00013899,2]
[338472517,1726680651160,-151.0,0.00013899,2]
[338472518,1726680651170,-2000.0,0.00013899,2]
[338472519,1726680651180,-481.06546,0.00013899,2]
[338472520,1726680651190,-198.535698,0.00013899,2]
[338472521,1726680651200,-206.094846,0.00013899,2]
[338472522,1726680651210,-206.094846,0.00013899,2]
[338472523,1726680651220,-234.05,0.00013899,2]
[338472524,1726680651230,-686536.98282303,0.000139,2]
[338472525,1726680651277,-116260.0,0.000139,2]
[338472526,1726680651289,-126790.96,0.000139,2]
[338472527,1726680651305,-1667.5,0.000139,2]
[338472528,1726680651339,-9480.11647319,0.000139,2]
[338472529,1726680652861,-1363.125,0.000139,2]
[338472530,1726680652873,-2894.76552035,0.000139,2]
[338472531,1726680652935,-22982.3562768,0.000139,2]
[338472532,1726680652988,-28350.0,0.000139,2]
[338472533,1726680653182,562.43,0.00012283,2]
[338472534,1726680655289,-2064.71264005,0.000139,2]
[338472535,1726680655303,-611.81478294,0.000139,2]
[338472536,1726680655319,-3352.26928,0.000139,2]
[338472537,1726680655349,-10279.79264327,0.000139,2]
[338472538,1726680655361,-5561.29,0.000139,2]
[338472539,1726680655373,-7254.35009782,0.000139,2]
[338472540,1726680655386,-547.51,0.000139,2]
[338472541,1726680655525,-65479.81380485,0.000139,2]
[338472542,1726680734573,151.23,0.00010959,2]
[338472544,1726680823193,176.95,0.000127,2]
[338472545,1726680823215,7.28338457,0.000127,2]
[338472546,1726680841619,411.16,0.00010751,2]
[338472547,1726680934615,14765.4297,0.00012685,2]
[338472548,1726680942692,11433.76,0.0001268,2]
[338472549,1726680955310,206.99,0.00012708,2]
[338472550,1726680958330,880.0,0.00012708,2]
[338472551,1726680996389,1869.97,0.00012708,2]
[338472553,1726681015516,250.0,0.00012712,2]
[338472554,1726681038156,233.89,0.00012712,2]
[338472555,1726681060129,250.0,0.00012712,2]
[338472556,1726681091055,1500.0,0.00012718,2]
[338472557,1726681097268,150.0,0.00012711,2]
[338472558,1726681139715,349.2404,0.00012685,2]
[338472559,1726681163760,155.38,0.00012648,2]
[338472560,1726681163990,155.38,0.00012658,2]
[338472561,1726681164246,155.38,0.00012669,2]
[338472562,1726681164454,155.38,0.00012679,2]
[338472563,1726681165216,155.38,0.0001269,2]
[338472564,1726681165283,155.38,0.000127,2]
[338472565,1726681165333,155.38,0.00012711,2]
[338472566,1726681327333,401.93,0.00010761,2]
[338472567,1726681357104,162.13,0.00010959,2]
[338472568,1726681436707,236.54,0.00012629,2]
[338472569,1726681502958,296.0,0.0001266,2]
[338472570,1726681519804,1050.0,0.00011,2]
[338472571,1726681592484,250.0,0.00012667,2]
[338472576,1726681738549,368.46676912,0.0001268,2]
[338472577,1726681748372,200.0,0.00012507,2]
[338472580,1726681830230,393.06,0.00010619,2]
[338472584,1726681832227,-163.37,0.0001277,2]
[338472585,1726681832238,-777.10405097,0.0001278,2]
[338472586,1726681832250,-1709.87048133,0.0001278,2]
[338472587,1726681832262,-312.05086866,0.0001278,2]
[338472588,1726681832271,-175.99,0.00012785,2]
[338472589,1726681832280,-361.17136678,0.000128,2]
[338472590,1726681832292,-1451.24090158,0.000128,2]
[338472591,1726681832448,-2251.61133164,0.000128,2]
[338472592,1726681832459,-152.05,0.0001287,2]
[338472593,1726681832468,-163.37,0.0001287,2]
[338472594,1726681832481,-216.74872697,0.0001287,2]
[338472595,1726681832491,-163.37,0.0001287,2]
[338472596,1726681832501,-163.37,0.0001287,2]
[338472597,1726681832510,-500.0,0.00012873,2]
[338472598,1726681832520,-89.47994139,0.00012879,2]
[338472600,1726681832544,-60.52005861,0.00012879,2]
[338472601,1726681832554,-6730.61464169,0.0001288,2]
[338472602,1726681832566,-571.47914992,0.0001288,2]
[338472603,1726681832577,-648.92,0.0001288,2]
[338472604,1726681832627,-238834.98569894,0.0001288,2]
[338472610,1726681838390,-255.53745705,0.0001288,2]
[338472611,1726681838402,-684.01551439,0.0001288,2]
[338472612,1726681838436,-1766.40180218,0.0001288,2]
[338472613,1726681838447,-1500.0,0.0001288,2]
[338472614,1726681838459,-1458.4,0.0001288,2]
[338472615,1726681838469,-300.17,0.0001288,2]
[338472619,1726681840353,-28413.12954961,0.0001288,2]
[338472620,1726681840416,-855.80167264,0.0001288,2]
[338472621,1726681841836,-2976.34758043,0.0001288,2]
[338472778,1726681843290,-60160.0,0.0001288,2]
[338472784,1726681843304,-60140.72194339,0.0001288,2]
[338472804,1726681843427,-720.70825157,0.0001288,2]
[338472806,1726681843439,-1417.74881785,0.0001288,2]
[338473007,1726681847643,-1041.9881929,0.0001288,2]